[Event "Stay Safe Play From Home 185"]
[Site "T#646428Emanuel Laske"]
[Date "2020.05.29"]
[Round "3"]
[White "Rogan"]
[Black "Fischer_11"]
[Result "1-0"]
[WhiteElo "2205"]
[BlackElo "2006"]
[Annotator "NA RC"]
[PlyCount "23"]
[EventDate "2020.05.29"]
[EventType "swiss (blitz)"]
[TimeControl "60"]

1. c3 {[%emt 0:00:00]} d5 {[%emt 0:00:01]} 2. d4 {[%emt 0:00:00]} c5 {[%emt 0:00:00]} 3. Nf3 {[%emt 0:00:00]} cxd4 {[%emt 0:00:00]} 4. cxd4 {[%emt 0:00:00]} Nc6 {[%emt 0:00:00]} 5. Bg5 {[%emt 0:00:00]} Bg4 {[%emt 0:00:01]} 6. Ne5 {[%emt 0:00:01]} Nxe5 {[%emt 0:00:03]} 7. dxe5 {[%emt 0:00:00]} Qa5+ {[%emt 0:00:02]} 8. Nc3 {[%emt 0:00:02]} e6 {[%emt 0:00:01]} 9. Qb3 {[%emt 0:00:03]} Qb6 {[%emt 0:00:02]} 10. e4 {[%emt 0:00:01]} Qxb3 {[%emt 0:00:05]} 11. axb3 {[%emt 0:00:00]} d4 {[%emt 0:00:01]} 12. Bb5# {[%emt 0:00:01] (Lag: Av=0.26s, max=0.3s)} 1-0